fUSD/lending_fUSD_20240214
["ID","MTS","AMOUNT","RATE_DAILY","PERIOD"]
[314031859,1707928363820,10000.0,0.0002709,30]
[314031860,1707928377567,535.39,0.0002709,30]
[314031861,1707928595415,1000.0,0.00022,2]
[314031862,1707929290498,300.0,0.00022489,2]
[314031863,1707929361163,-270.64908,0.00022579,2]
[314031864,1707929361187,-162.72185534,0.00022579,2]
[314031865,1707929361209,-159.75471014,0.0002258,2]
[314031866,1707929361231,-156.99017966,0.00022596,2]
[314031867,1707929361252,-1567.86847976,0.00022693,2]
[314031868,1707929361273,-363.36975338,0.00022694,2]
[314031869,1707929361295,-2920.58276273,0.00022695,2]
[314031870,1707929366115,-12358.59000069,0.00022695,2]
[314031903,1707929432179,-2585.85,0.00022596,2]
[314031911,1707929438167,-4.30540416,0.00022595,2]
[314031912,1707929438243,-266.34367584,0.00022595,2]
[314031913,1707929438253,-197.15923086,0.00022596,2]
[314031914,1707929438265,-1392.7800004,0.00022596,2]
[314031915,1707929438349,-1275.75330298,0.00022596,2]
[314031916,1707929438361,-1710.59285682,0.00022596,2]
[314031917,1707929438411,-937.09930894,0.00022596,2]
[314031918,1707929438421,-287.96800514,0.00022694,2]
[314031919,1707929438432,-191.71449925,0.00022694,2]
[314031920,1707929438441,-493.43778021,0.00022694,2]
[314031921,1707929438451,-677.38454654,0.00022695,2]
[314032012,1707929440654,-1634.62633341,0.00022695,2]
[314032013,1707929440669,-1367.24383837,0.00022695,2]
[314032014,1707929440710,-310.84536343,0.00022695,2]
[314032015,1707929441419,-2477.0,0.00022695,2]
[314032016,1707929441533,-315.06039575,0.00022695,2]
[314032017,1707929441590,-310.75095342,0.00022695,2]
[314032018,1707929441602,-6235.65860793,0.00022695,2]
[314032019,1707929441669,-1742.25849507,0.00022695,2]
[314032047,1707929443069,-427.61637605,0.00022695,2]
[314032054,1707929443127,-11371.64352176,0.00022695,2]
[314032055,1707929443139,-2784.14221271,0.00022695,2]
[314032056,1707929443149,-2563.80741386,0.00022696,2]
[314032057,1707929443183,-868.63367583,0.00022696,2]
[314032058,1707929443243,-14731.905,0.00022696,2]
[314032059,1707929443296,-2579.8285,0.00022696,2]
[314032060,1707929443308,-17109.51938195,0.00022696,2]
[314032061,1707929443354,-377.96018289,0.00022696,2]
[314032068,1707929446091,-1764.43089815,0.00022696,2]
[314032069,1707929446122,-57389.48464289,0.00022696,2]
[314032070,1707929446322,-1871.46648394,0.00022696,2]
[314032071,1707929446334,-905.64504445,0.00022696,2]
[314032072,1707929458282,300.0,0.00022482,2]
[314032073,1707929547155,1890.66673384,0.00015,2]
[314032074,1707929593702,1458.38335766,0.0001305,2]
[314032075,1707929594215,239.91861733,0.000101,2]
[314032076,1707929648405,1991.43568704,0.0002,2]
[314032077,1707929648429,3689.73766203,0.0002,2]
[314032078,1707929648454,3689.73766203,0.0002,2]
[314032079,1707929648477,3689.73766203,0.0002,2]
[314032080,1707929648504,19469.3536791,0.0002,2]
[314032081,1707930160490,3689.73766203,0.00017171,2]
[314032082,1707930160513,2158.2215971,0.00017171,2]
[314032083,1707930161584,811.17897977,0.00021752,2]
[314032084,1707930163645,155.71394803,0.0002,2]
[314032085,1707930164070,564.62313713,0.000199,2]
[314032086,1707930164093,1640.64577212,0.000199,2]
[314032087,1707930164183,468.54244741,0.0002,2]
[314032088,1707930167871,1580.5494425,0.0002221,2]
[314032089,1707930167896,877.18079064,0.0002221,2]
[314032090,1707930168117,355.32552663,0.0002,2]
[314032091,1707930168280,155.0,0.0002,2]
[314032092,1707930178448,2302.23134476,0.00017171,2]
[314032093,1707930178474,3545.72791437,0.00017171,2]
[314032094,1707930186190,468.54244741,0.0002,2]
[314032095,1707930186260,206.42408584,0.0002,2]
[314032096,1707930198800,5847.95925913,0.0001717,2]
[314032097,1707930202182,468.54244741,0.0002,2]
[314032098,1707930215453,150.73300819,0.00022188,2]
[314032099,1707930220156,468.54244741,0.0002,2]
[314032100,1707930224457,4437.60001658,0.00017169,2]
[314032101,1707930227760,166.68564811,0.0002,2]
[314032102,1707930228390,1256.1983795,0.0002,2]
[314032103,1707930234652,2674.84247123,0.0002,2]
[314032104,1707930235595,873.53225795,0.0002,2]
[314032105,1707930239397,384.14020334,0.0002,2]
[314032106,1707930240301,167.72052616,0.0002,2]
[314032107,1707930240489,155.79227291,0.0002,2]
[314032108,1707930243333,158.36266505,0.0002,2]
[314032109,1707930243383,155.56339283,0.0002,2]
[314032110,1707930247110,155.0,0.00019999,2]
[314032111,1707930247768,786.03,0.0002231,2]
[314032112,1707930259660,500.0,0.00021925,2]
[314032113,1707930275945,157.2,0.00021975,2]
[314032114,1707930278902,2111.0301067,0.00022496,2]
[314032115,1707930287639,191.84,0.00021829,2]
[314032116,1707930293621,160.15,0.00021932,2]
[314032117,1707930293816,160.15,0.00022075,2]
[314032118,1707930294193,160.15,0.00022218,2]
[314032119,1707930294488,160.15,0.0002236,2]
[314032120,1707930296223,1035.26,0.00019827,2]
[314032121,1707930296629,1035.26,0.00022091,2]
[314032122,1707930308898,1271.64286542,0.00022485,2]
[314032123,1707930310322,1271.64286542,0.00022491,2]
[314032124,1707930311514,1271.64286542,0.00022496,2]
[314032125,1707930314569,2206.32583655,0.00022494,2]
[314032126,1707930333535,250.0,0.00021655,2]
[314032127,1707930339095,-2029.44709813,0.00022491,2]
[314032128,1707930339116,-234.60567242,0.00022491,2]
[314032129,1707930339136,-532.02271662,0.00022491,2]
[314032130,1707930339156,-585.61698951,0.00022492,2]
[314032131,1707930339175,-1177.29445692,0.00022492,2]
[314032132,1707930344259,615.0,0.00021628,2]
[314032133,1707930344285,2090.0,0.00021628,2]
[314032134,1707930350248,250.0,0.00021918,2]
[314032135,1707930353006,1182.52,0.00021616,2]
[314032136,1707930358862,200.0,0.00021622,2]
[314032137,1707930381928,500.0,0.00021594,2]
[314032138,1707930388228,200.0,0.00021594,2]
[314032139,1707930399604,2757.57,0.00021585,2]
[314032140,1707930414111,909.75778928,0.00021594,2]
[314032141,1707930414479,500.0,0.00021562,2]
[314032142,1707930427809,1000.0,0.00021577,2]
[314032143,1707930430123,517.99231956,0.00021594,2]
[314032144,1707930433429,398.63,0.00021577,2]
[314032146,1707930477257,154.54387429,0.00021594,2]
[314032147,1707930483603,2000.0,0.00021564,2]
[314032148,1707930507490,23900.0,0.00021565,2]
[314032149,1707930525919,641.31,0.00021542,2]
[314032150,1707930530342,542.18,0.00021542,2]
[314032151,1707930543691,199.03,0.00021536,10]
[314032154,1707930550119,-150.0,0.00022365,2]
[314032155,1707930550139,-155.0,0.00022365,2]
[314032156,1707930550162,-2918.4010382,0.00022365,2]
[314032157,1707930550182,-1143.31391354,0.00022365,2]
[314032158,1707930550201,-300.0,0.00022365,2]
[314032159,1707930550221,-1047.61752499,0.00022365,2]
[314032160,1707930550242,-248.13544378,0.00022365,2]
[314032161,1707930550266,-1227.27625109,0.00022365,2]
[314032162,1707930550285,-212.96144381,0.00022365,2]
[314032163,1707930550305,-155.0,0.00022365,2]
[314032164,1707930550324,-491.39275006,0.00022365,2]
[314032165,1707930550343,-701.19097239,0.00022365,2]
[314032166,1707930550362,-2605.00836615,0.00022365,2]
[314032167,1707930550380,-617.19286081,0.00022366,2]
[314032168,1707930550399,-280.95359764,0.00022366,2]
[314032169,1707930550419,-2333.12785801,0.00022366,2]
[314032170,1707930550438,-267.01639898,0.00022366,2]
[314032171,1707930550458,-155.0,0.00022366,2]
[314032172,1707930550476,-155.0,0.00022366,2]
[314032173,1707930550495,-155.0,0.00022366,2]
[314032174,1707930550514,-2151.49086795,0.00022367,2]
[314032175,1707930550532,-1047.35508417,0.00022367,2]
[314032176,1707930550551,-216.77793244,0.00022367,2]
[314032177,1707930550569,-231.52782841,0.00022367,2]
[314032178,1707930550589,-286.47966242,0.00022367,2]
[314032179,1707930550615,-4259.42218748,0.00022367,2]
[314032180,1707930550635,-302.0457605,0.00022367,2]
[314032181,1707930550654,-178.87200752,0.00022367,2]
[314032182,1707930550678,-10587.18937724,0.00022367,2]
[314032183,1707930550698,-155.0,0.00022367,2]
[314032184,1707930550717,-5548.25860248,0.00022367,2]
[314032185,1707930550738,-204.23542319,0.00022367,2]
[314032186,1707930550761,-1233.48725567,0.00022367,2]
[314032187,1707930550781,-221.21844049,0.00022367,2]
[314032188,1707930550800,-155.0,0.00022367,2]
[314032189,1707930550820,-24484.38826566,0.00022367,2]
[314032190,1707930550839,-155.0,0.00022367,2]
[314032191,1707930550860,-5475.35088695,0.00022368,2]
[314032192,1707930550879,-3348.58388611,0.00022368,2]
[314032193,1707930550899,-497.60929749,0.00022368,2]
[314032194,1707930550918,-20389.89790764,0.00022368,2]
[314032195,1707930564364,156.99596799,0.00022142,2]
[314032196,1707930565960,497.60929749,0.00022141,2]
[314032197,1707930566107,3371.33,0.00021572,2]
[314032198,1707930568228,200.0,0.00021564,2]
[314032203,1707930585912,200.0,0.00021551,2]
[314032204,1707930585979,497.60929749,0.00022142,2]
[314032208,1707930604151,150.0,0.00021551,2]
[314032209,1707930605987,238.23192536,0.0002214,2]
[314032210,1707930613121,1908.4,0.00021539,2]
[314032219,1707930632271,-216.77793244,0.00022336,2]
[314032220,1707930632280,-563.76196448,0.00022336,2]
[314032221,1707930632289,-221.21844049,0.00022336,2]
[314032222,1707930632299,-2636.57379953,0.00022337,2]
[314032223,1707930632309,-155.0,0.00022337,2]
[314032224,1707930632318,-155.0,0.00022337,2]
[314032225,1707930632329,-3348.58388611,0.00022337,2]
[314032226,1707930632339,-451.19344516,0.00022337,2]
[314032227,1707930632384,-165.99941565,0.00022337,2]
[314032228,1707930632394,-155.0,0.00022337,2]
[314032229,1707930632403,-277.09058415,0.00022337,2]
[314032230,1707930632415,-1068.4000004,0.00022337,2]
[314032231,1707930632493,-1047.61752499,0.00022336,2]
[314032232,1707930632513,-63.5765267,0.00022337,2]
[314032233,1707930632523,-788.56699986,0.00022337,2]
[314032245,1707930638244,-155.0,0.00022335,2]
[314032246,1707930638255,-155.0,0.00022335,2]
[314032247,1707930638265,-270.64908,0.00022335,2]
[314032248,1707930638275,-2604.62068926,0.00022337,2]
[314032249,1707930638288,-1459.43237019,0.00022337,2]
[314032250,1707930638304,-622.73082764,0.00022337,2]
[314032251,1707930638313,-191.99950111,0.00022338,2]
[314032252,1707930638323,-345.43264972,0.00022338,2]
[314032253,1707930638333,-2796.72015372,0.00022338,2]
[314032254,1707930638342,-155.0,0.00022339,2]
[314032255,1707930638352,-2029.44709813,0.00022339,2]
[314032256,1707930638362,-13116.90206722,0.00022339,2]
[314032257,1707930638383,-3744.35242673,0.00022339,2]
[314032258,1707930638393,-155.0,0.0002234,2]
[314032259,1707930638402,-1958.15673038,0.0002234,2]
[314032260,1707930638412,-626.56955567,0.00022341,2]
[314032261,1707930638421,-528.17865243,0.00022341,2]
[314032262,1707930638431,-514.81426756,0.00022341,2]
[314032263,1707930638440,-4270.20264567,0.00022341,2]
[314032264,1707930638449,-4724.98044275,0.00022341,2]
[314032265,1707930638458,-236.36627881,0.00022342,2]
[314032271,1707930638674,-736.70977747,0.00022342,2]
[314032273,1707930638683,-409.52376211,0.00022364,2]
[314032274,1707930638692,-375.96361041,0.00022364,2]
[314032276,1707930638701,-155.00097342,0.00022364,2]
[314032278,1707930638710,-156.00479395,0.00022365,2]
[314032280,1707930638719,-166.79708264,0.00022365,2]
[314032282,1707930638733,-1712.1662275,0.00022365,2]
[314032289,1707930639039,-1123.13901484,0.00022365,2]
[314032290,1707930639052,-2385.7417834,0.00022365,2]
[314032291,1707930639064,-742.07312955,0.00022365,2]
[314032292,1707930639076,-910.035438,0.00022365,2]
[314032293,1707930640879,-0.09824875,0.00022365,2]
[314032294,1707930641541,-21560.79278403,0.00022365,2]
[314032295,1707930641550,-247.97750553,0.00022366,2]
[314032296,1707930641559,-1968.30282666,0.00022366,2]
[314032297,1707930641568,-691.12501667,0.00022366,2]
[314032298,1707930641577,-204.10867442,0.00022366,2]
[314032299,1707930641586,-700.85446561,0.00022366,2]
[314032300,1707930641595,-2332.17765241,0.00022366,2]
[314032301,1707930641604,-175.90664113,0.00022366,2]
[314032302,1707930641613,-422.00320511,0.00022366,2]
[314032303,1707930641622,-1151.6806291,0.00022366,2]
[314032304,1707930641631,-450.01239311,0.00022366,2]
[314032305,1707930641640,-347.9182885,0.00022366,2]
[314032306,1707930641650,-955.34447786,0.00022366,2]
[314032307,1707930641658,-155.0,0.00022366,2]
[314032308,1707930641668,-259.77406402,0.00022366,2]
[314032309,1707930641677,-2607.02192685,0.00022366,2]
[314032310,1707930641686,-2354.55120685,0.00022366,2]
[314032311,1707930641696,-178.79985194,0.00022366,2]
[314032312,1707930641705,-647.10838768,0.00022366,2]
[314032313,1707930641714,-233.7526524,0.00022366,2]
[314032314,1707930641723,-155.0,0.00022366,2]
[314032315,1707930641732,-189.52753996,0.00022366,2]
[314032316,1707930641742,-2355.84240164,0.00022366,2]
[314032317,1707930641752,-20172.23310418,0.00022366,2]
[314032318,1707930641761,-583.02813442,0.00022366,2]
[314032320,1707930641771,-2917.29499408,0.00022366,2]
[314032322,1707930641779,-224.04406869,0.00022372,2]
[314032323,1707930641788,-302.97404261,0.0002248,2]
[314032325,1707930641797,-499.99,0.0002248,2]
[314032327,1707930641806,-54063.0225,0.00022483,2]
[314032329,1707930641815,-371.14,0.00022483,2]
[314032331,1707930641824,-416.29436299,0.00022489,2]
[314032333,1707930641834,-531.81527682,0.00022489,2]
[314032335,1707930641843,-4502.08395463,0.0002249,2]
[314032337,1707930641852,-1000.0,0.00022494,2]
[314032339,1707930641862,-1927.9937,0.00022494,2]
[314032341,1707930641871,-355.84824712,0.00022496,2]
[314032343,1707930641880,-530.0944826,0.00022496,2]
[314032345,1707930641890,-160.15,0.00022503,2]
[314032347,1707930641899,-800.0,0.00022548,2]
[314032349,1707930641908,-233.58798122,0.0002258,2]
[314032351,1707930641918,-286.83632709,0.00022584,2]
[314032353,1707930641927,-6264.32757012,0.00022586,2]
[314032355,1707930641936,-155.0,0.00022588,2]
[314032357,1707930641945,-1000.0,0.00022589,2]
[314032359,1707930641954,-161.47798287,0.0002259,2]
[314032361,1707930641963,-545.98654233,0.00022592,2]
[314032363,1707930641972,-155.0,0.00022592,2]
[314032365,1707930641984,-770.82083151,0.00022592,2]
[314032367,1707930641993,-2158.44442105,0.00022592,2]
[314032369,1707930642006,-155.23296146,0.00022592,2]
[314032371,1707930642016,-500.0,0.00022593,2]
[314032373,1707930642026,-500.0,0.00022593,2]
[314032375,1707930642037,-500.0,0.00022593,2]
[314032377,1707930642048,-493.33378926,0.00022593,2]
[314032379,1707930642060,-500.0,0.00022593,2]
[314032381,1707930642069,-500.0,0.00022593,2]
[314032383,1707930642079,-358.78281738,0.00022593,2]
[314032385,1707930642088,-500.0,0.00022593,2]
[314032387,1707930642098,-500.0,0.00022593,2]
[314032389,1707930642108,-500.0,0.00022593,2]
[314032392,1707930642122,-500.0,0.00022593,2]
[314032394,1707930642131,-500.0,0.00022593,2]
[314032396,1707930642141,-250.28576934,0.00022594,3]
[314032398,1707930642151,-787806.59746752,0.00022594,2]
[314032400,1707930642160,-299.0047,0.00022596,2]
[314032402,1707930642170,-268.81410633,0.0002261,2]
[314032404,1707930642180,-155.0,0.00022617,2]
[314032406,1707930642190,-160.15,0.00022646,2]
[314032408,1707930642200,-281.16699964,0.00022666,2]
[314032410,1707930642210,-160.15,0.00022789,2]
[314032412,1707930642219,-171.1956165,0.00022797,2]
[314032414,1707930642228,-155.99818682,0.000228,2]
[314032415,1707930642238,-155.0,0.000228,2]
[314032416,1707930642250,-800.0,0.00022877,2]
[314032417,1707930642259,-399.94209826,0.00022881,2]
[314032418,1707930642269,-1026.53021086,0.00022892,2]
[314032419,1707930642278,-299.58949921,0.00022892,2]
[314032420,1707930642288,-155.0,0.00022892,2]
[314032421,1707930642297,-363.67553212,0.00022892,2]
[314032423,1707930642306,-5059.0803306,0.00022892,2]
[314032424,1707930642315,-156.10743605,0.00022892,2]
[314032426,1707930642326,-536.0468364,0.00022892,2]
[314032428,1707930642335,-352.00553377,0.00022892,2]
[314032429,1707930642344,-311.87390334,0.00022892,2]
[314032431,1707930642353,-204.48055045,0.00022892,2]
[314032432,1707930642363,-1210.04815651,0.00022892,2]
[314032433,1707930642373,-526.72010245,0.00022892,2]
[314032434,1707930642382,-3823.6091244,0.00022892,2]
[314032435,1707930642392,-1379.29320641,0.00022892,2]
[314032436,1707930642401,-290.58241428,0.00022892,2]
[314032437,1707930642409,-393.22096164,0.00022892,2]
[314032438,1707930642419,-4651.87061363,0.00022892,2]
[314032439,1707930642428,-2319.63023705,0.00022892,2]
[314032440,1707930642438,-159.72247724,0.00022892,2]
[314032441,1707930642450,-1912.57502668,0.00022892,2]
[314032442,1707930642460,-1824.60231379,0.00022892,2]
[314032443,1707930642470,-181.6052885,0.00022892,2]
[314032444,1707930642479,-512.90679823,0.00022892,2]
[314032445,1707930642489,-155.0,0.00022892,2]
[314032446,1707930642501,-155.4152334,0.00022892,2]
[314032447,1707930642510,-199.37590358,0.00022892,2]
[314032448,1707930642518,-155.23766084,0.00022892,2]
[314032449,1707930642528,-414.36901055,0.00022892,2]
[314032450,1707930642537,-366.13765275,0.00022892,2]
[314032451,1707930642546,-156.6229456,0.00022892,2]
[314032452,1707930642554,-155.67748766,0.00022892,2]
[314032453,1707930642564,-640.55153823,0.00022892,2]
[314032454,1707930642573,-775.53574364,0.00022892,2]
[314032455,1707930642585,-229.57746302,0.00022893,2]
[314032456,1707930642595,-1051.3255843,0.00022893,2]
[314032457,1707930642604,-1263.06819669,0.00022893,2]
[314032458,1707930642614,-261.6756559,0.00022895,2]
[314032459,1707930642623,-4430.27471929,0.00022895,2]
[314032460,1707930642632,-1044.35236561,0.00022896,2]
[314032461,1707930642642,-3643.31753463,0.00022896,2]
[314032462,1707930642652,-4025.89736161,0.00022896,2]
[314032463,1707930642661,-155.0,0.00022897,2]
[314032464,1707930642670,-33533.40049556,0.00022897,2]
[314032465,1707930642680,-246.06675655,0.00022897,2]
[314032466,1707930642690,-297.17546881,0.00022897,2]
[314032467,1707930642699,-1000.0,0.000229,2]
[314032468,1707930642709,-22756.4072,0.000229,2]
[314032469,1707930642718,-500.0,0.000229,2]
[314032470,1707930642727,-2173.9682,0.000229,2]
[314032471,1707930642737,-10244.5452,0.000229,2]
[314032472,1707930642745,-2221.6212,0.000229,2]
[314032473,1707930642757,-100000.0,0.000229,2]
[314032474,1707930642766,-2947.5388,0.000229,2]
[314032475,1707930642776,-160.15,0.00022932,2]
[314032476,1707930642787,-721.29,0.00023,2]
[314032477,1707930642796,-528024.80862,0.00023,2]
[314032478,1707930642806,-160.15,0.00023075,2]
[314032479,1707930642815,-542.18,0.00023186,2]
[314032480,1707930642824,-44649.5,0.00024,2]
[314032481,1707930642833,-286.83632709,0.00024094,2]
[314032482,1707930642843,-457.49112632,0.000241,2]
[314032483,1707930642852,-8346.84,0.00024104,2]
[314032484,1707930642861,-157.2,0.00024172,2]
[314032485,1707930642870,-1000.0,0.00024274,2]
[314032486,1707930642879,-372.0,0.00024294,2]
[314032487,1707930642889,-1035.26,0.00024355,2]
[314032488,1707930642898,-19252.21979484,0.000246,2]
[314032489,1707930642907,-210.0,0.00024602,2]
[314032490,1707930642916,-250.0,0.00024658,2]
[314032491,1707930642925,-542.18,0.0002483,2]
[314032492,1707930642934,-1985.494323,0.00025,2]
[314032493,1707930642943,-355.84824712,0.00025547,2]
[314032494,1707930642953,-1256.85763788,0.00025932,2]
[314032495,1707930642962,-169.79,0.00026059,2]
[314032496,1707930642973,-157.2,0.0002637,2]
[314032497,1707930642983,-4473.93,0.00026473,2]
[314032498,1707930642992,-542.18,0.00026474,2]
[314032499,1707930643003,-1035.26,0.00026619,2]
[314032500,1707930643013,-1000.0,0.00026971,2]
[314032501,1707930643022,-293.0,0.00027062,2]
[314032502,1707930643031,-2609.07512197,0.0002709,2]
[314032503,1707930643040,-155.0,0.00027397,2]
[314032504,1707930643049,-2000.0,0.000274,2]
[314032505,1707930643058,-258.192686,0.00027438,2]
[314032506,1707930643067,-202.0,0.00027495,2]
[314032507,1707930643076,-1027.40490907,0.000279,2]
[314032508,1707930643086,-152.1,0.00027933,2]
[314032509,1707930643096,-364.58258095,0.00027998,2]
[314032510,1707930643104,-402.83821741,0.00027998,2]
[314032511,1707930643114,-155.0,0.00027998,2]
[314032512,1707930643123,-436.19062659,0.00027998,2]
[314032513,1707930643132,-203.18343961,0.00027999,2]
[314032514,1707930643141,-172026.49899771,0.00028,2]
[314032515,1707930643151,-969.27668517,0.00028,2]
[314032516,1707930643159,-2937.10411449,0.000281,2]
[314032517,1707930643168,-542.18,0.00028117,2]
[314032518,1707930643178,-202.0,0.00028132,3]
[314032519,1707930643187,-1979.71851633,0.00028247,28]
[314032520,1707930643196,-150.0,0.000284,2]
[314032522,1707930643205,-355.84824712,0.00028598,2]
[314032524,1707930643214,-161.06540872,0.00028767,2]
[314032526,1707930643224,-202.0,0.0002877,4]
[314032528,1707930643233,-1035.26,0.00028883,2]
[314032530,1707930643242,-177.3,0.00029,2]
[314032532,1707930643251,-202.0,0.00029407,5]
[314032533,1707930643260,-177.3,0.00029548,2]
[314032535,1707930643269,-1000.0,0.00029668,2]
[314032536,1707930643278,-530.09448258,0.00029691,2]
[314032537,1707930643287,-542.18,0.00029761,2]
[314032538,1707930643296,-411.0,0.00029768,2]
[314032539,1707930643305,-3034.65705607,0.000299,2]
[314032540,1707930643314,-568.15830674,0.000299,2]
[314032541,1707930643323,-797.04384767,0.000299,2]
[314032542,1707930643332,-730.59583916,0.000299,2]
[314032543,1707930643341,-100000.0,0.0003,2]
[314032544,1707930643350,-73392.57907739,0.0003,4]
[314032545,1707930643359,-155.0,0.0003,2]
[314032546,1707930643368,-5648.82696983,0.0003,2]
[314032547,1707930643377,-337578.92313077,0.0003,4]
[314032548,1707930643386,-500.0,0.0003,2]
[314032549,1707930643395,-500.0,0.0003,2]
[314032550,1707930643405,-500.0,0.0003,2]
[314032551,1707930643414,-500.0,0.0003,2]
[314032552,1707930643423,-500.0,0.0003,2]
[314032553,1707930643433,-500.0,0.0003,2]
[314032554,1707930643442,-202.0,0.00030044,6]
[314032555,1707930643452,-177.3,0.00030096,2]
[314032556,1707930643461,-1750.0,0.000301,2]
[314032557,1707930643471,-151.32,0.00030137,2]
[314032558,1707930643480,-398.63,0.00030207,2]
[314032559,1707930643490,-500.0,0.0003043,2]
[314032560,1707930643499,-354.42,0.00030644,2]
[314032561,1707930643508,-202.0,0.00030682,7]
[314032562,1707930643517,-152.1,0.00030727,2]
[314032563,1707930643526,-3034.65705597,0.00030811,2]
[314032564,1707930643536,-100000.0,0.00031,2]
[314032565,1707930643545,-1035.26,0.00031147,2]
[314032566,1707930643554,-202.0,0.00031319,8]
[314032567,1707930643563,-895.6222277,0.000314,30]
[314032568,1707930643572,-8521.2651289,0.0003143,4]
[314032569,1707930643581,-180.0,0.00031644,2]
[314032570,1707930643590,-169.68,0.00031644,2]
[314032571,1707930643599,-355.84824712,0.00031648,2]
[314032572,1707930643608,-460.02564019,0.00031674,2]
[314032574,1707930643617,-11276.84512676,0.00031677,7]
[314032576,1707930643626,-29341.52429021,0.00031677,7]
[314032578,1707930643635,-9860.12056157,0.00031677,7]
[314032580,1707930643643,-28427.48884776,0.00031677,7]
[314032582,1707930643652,-7620.51732295,0.00031677,7]
[314032584,1707930643661,-13964.10694498,0.00031677,7]
[314032586,1707930643670,-3034.65705597,0.00031721,3]
[314032588,1707930643679,-202.0,0.00031957,9]
[314032590,1707930643688,-155.0,0.00031998,4]
[314032592,1707930643698,-307.313967,0.00031999,4]
[314032594,1707930643707,-156.15208998,0.00031999,4]
[314032596,1707930643716,-100000.0,0.00032,2]
[314032598,1707930643725,-306.90740627,0.00032,2]
[314032600,1707930643734,-306.90740627,0.00032,2]
[314032602,1707930643743,-306.90740627,0.00032,2]
[314032604,1707930643754,-306.90740627,0.00032,2]
[314032606,1707930643762,-306.90740627,0.00032,2]
[314032608,1707930643772,-306.90740627,0.00032,2]
[314032610,1707930643781,-306.90740627,0.00032,2]
[314032612,1707930643790,-306.90740627,0.00032,2]
[314032614,1707930643799,-306.90740627,0.00032,2]
[314032616,1707930643808,-306.90740627,0.00032,2]
[314032618,1707930643818,-306.90740627,0.00032,2]
[314032620,1707930643827,-306.90740627,0.00032,2]
[314032622,1707930643838,-306.90740627,0.00032,2]
[314032624,1707930643847,-306.90740627,0.00032,2]
[314032626,1707930643856,-306.90740627,0.00032,2]
[314032628,1707930643865,-306.90740627,0.00032,2]
[314032630,1707930643874,-306.90740627,0.00032,2]
[314032632,1707930643882,-306.90740627,0.00032,2]
[314032634,1707930643892,-306.90740627,0.00032,2]
[314032636,1707930643902,-306.90740627,0.00032,2]
[314032638,1707930643911,-306.90740627,0.00032,2]
[314032640,1707930643920,-306.90740627,0.00032,2]
[314032642,1707930643929,-306.90740627,0.00032,2]
[314032644,1707930643938,-306.90740627,0.00032,2]
[314032646,1707930643947,-306.90740627,0.00032,2]
[314032648,1707930643956,-306.90740627,0.00032,2]
[314032650,1707930643966,-306.90740627,0.00032,2]
[314032673,1707930644182,-306.90740627,0.00032,2]
[314032675,1707930644192,-306.90740627,0.00032,2]
[314032677,1707930644201,-306.90740627,0.00032,2]
[314032679,1707930644210,-155.99818682,0.000322,2]
[314032681,1707930644219,-286.83632709,0.00032268,2]
[314032683,1707930644228,-330442.08517026,0.00032278,2]
[314032685,1707930644237,-1000.0,0.00032365,2]
[314032687,1707930644247,-202.0,0.00032594,11]
[314032689,1707930644257,-1000.0,0.000326,2]
[314032691,1707930644266,-153.71,0.000326,2]
[314032693,1707930644275,-153.71,0.000326,2]
[314032695,1707930644284,-153.71,0.000326,2]
[314032697,1707930644293,-153.71,0.000326,2]
[314032699,1707930644302,-3034.65705597,0.00032632,4]
[314032701,1707930644312,-576.0,0.00032745,3]
[314032703,1707930644321,-150.84,0.00032877,2]
[314032705,1707930644332,-254.36,0.00032877,2]
[314032707,1707930644341,-1750.0,0.000329,2]
[314032709,1707930644350,-8000.0,0.000329,2]